bitfinex/quotes_SOLUSD_20250903
["timestamp","ask_amount","ask_price","bid_price","bid_amount"]
[1756909334169,0.68,211.09,211.04,17.25753446]
[1756909334371,39.0,211.11,211.07,11.84911374]
[1756909334563,39.0,211.11,211.08,11.84911374]
[1756909334769,39.0,211.11,211.08,12.51911374]
[1756909335677,39.0,211.11,211.07,11.84911374]
[1756909335860,0.06,211.11,211.08,0.67]
[1756909336171,0.06,211.11,211.1,11.84911374]
[1756909336372,0.06,211.11,211.1,17.25620516]
[1756909336564,0.06,211.11,211.1,16.58620516]
[1756909336764,0.06,211.11,211.08,16.58653896]
[1756909336967,0.06,211.11,211.08,79.7]
[1756909337279,0.74,211.11,211.08,79.7]
[1756909337752,0.06,211.11,211.08,79.7]
[1756909337956,0.06,211.11,211.08,91.54911374]
[1756909338368,0.06,211.11,211.09,16.58642957]
[1756909338573,0.06,211.11,211.1,11.84911374]
[1756909338771,0.06,211.11,211.1,12.51911374]
[1756909338975,0.06,211.11,211.1,11.84911374]
[1756909339860,0.06,211.11,211.1,12.51911374]
[1756909340060,0.06,211.11,211.08,84.43752309]
[1756909340364,0.06,211.11,211.1,16.58620516]
[1756909340979,0.06,211.11,211.1,17.25620516]
[1756909341290,0.06,211.11,211.1,16.58620516]
[1756909341491,0.06,211.11,211.1,11.84911374]
[1756909342478,0.74,211.11,211.08,79.7]
[1756909342711,0.68,211.1,211.08,79.7]
[1756909343063,0.06,211.11,211.08,79.7]
[1756909343262,0.68,211.1,211.08,79.7]
[1756909344707,0.68,211.09,211.08,79.73]
[1756909344885,26.68,211.09,211.08,79.73]
[1756909345092,0.06,211.11,211.08,79.73]
[1756909345406,0.06,211.11,211.09,11.84911374]
[1756909345616,39.59559401,211.09,211.08,0.03]
[1756909345822,39.59559401,211.01,210.98,0.03]
[1756909346099,39.59559401,211.01,210.83,0.1]
[1756909346100,39.59559401,210.97,210.85,17.26180508]
[1756909346274,13.59559401,210.92,210.85,0.67]
[1756909346481,11.84911374,210.89,210.85,0.67]
[1756909347382,11.84911374,210.89,210.86,0.67]
[1756909347595,38.92,210.91,210.86,0.67]
[1756909347799,11.84911374,210.89,210.84,4.74289646]
[1756909348405,11.84911374,210.89,210.85,0.67]
[1756909348788,3.87722055,210.95,210.85,0.67]
[1756909348789,0.68,210.97,210.86,12.51911374]
[1756909348979,26.0,210.93,210.87,12.51911374]
[1756909349180,26.0,210.93,210.87,0.67]
[1756909349181,76.76911374,210.93,210.87,0.67]
[1756909349513,37.84911374,210.96,210.87,0.67]
[1756909349675,11.84911374,210.95,210.88,11.84911374]
[1756909349880,11.84911374,210.95,210.89,0.67]
[1756909350092,11.84911374,210.94,210.89,0.67]
[1756909350506,11.84911374,210.93,210.89,0.67]
[1756909350798,50.76911374,210.95,210.9,0.67]
[1756909351196,51.44911374,210.95,210.9,0.67]
[1756909351385,11.84911374,210.94,210.89,4.74180852]
[1756909351699,38.92,210.95,210.87,17.26134241]
[1756909351900,11.84911374,210.91,210.86,4.74238998]
[1756909352201,50.76911374,210.91,210.86,5.41238998]
[1756909352411,50.76911374,210.92,210.87,0.67]
[1756909352608,51.44911374,210.92,210.87,0.67]
[1756909352786,12.52911374,210.92,210.86,4.74238998]
[1756909352987,51.44911374,210.92,210.86,4.74238998]
[1756909353205,51.44911374,210.92,210.86,16.59150372]
[1756909353511,50.76911374,210.92,210.86,16.59150372]
[1756909353804,26.0,210.91,210.86,17.26150372]
[1756909353975,26.0,210.91,210.87,0.67]
[1756909354302,11.84911374,210.95,210.89,11.84911374]
[1756909354485,50.76911374,210.95,210.89,11.84911374]
[1756909354819,76.76911374,210.95,210.89,4.74180852]
[1756909355186,11.84911374,210.93,210.86,11.84911374]
[1756909355383,76.76911374,210.95,210.89,11.84911374]
[1756909355982,11.84911374,210.94,210.88,12.51911374]
[1756909356182,11.84911374,210.94,210.88,0.67]
[1756909356481,11.84911374,210.94,210.88,12.51911374]
[1756909356903,37.84911374,210.95,210.9,4.74158368]
[1756909357206,76.76911374,210.95,210.9,4.74158368]
[1756909357410,11.84911374,210.96,210.91,0.67]
[1756909357707,38.92,210.96,210.91,0.67]
[1756909357895,39.6,210.96,210.91,12.51911374]
[1756909358096,51.44911374,210.96,210.9,16.59069742]
[1756909358301,51.44911374,210.96,210.91,0.67]
[1756909358501,11.84911374,211.05,210.94,11.84911374]
[1756909358682,3.24896322,211.08,211.0,11.84911374]
[1756909358683,0.68,211.07,211.0,11.84911374]
[1756909358883,26.0,211.05,211.02,16.5879728]
[1756909359100,0.68,211.07,211.02,16.5879728]
[1756909359408,26.0,211.05,211.03,11.84911374]
[1756909359593,0.68,211.04,211.0,16.58825535]
[1756909360000,17.51066864,211.11,211.03,11.84911374]
[1756909360001,0.68,211.09,211.03,11.84911374]
[1756909360301,26.0,211.07,211.04,11.84911374]
[1756909360510,39.6,211.09,211.04,11.84911374]
[1756909360511,26.0,211.06,211.04,11.84911374]
[1756909360699,26.0,211.06,211.01,0.67]
[1756909360897,0.68,211.05,211.0,11.84911374]
[1756909361100,12.52911374,211.04,210.95,0.67]
[1756909361284,11.84911374,211.04,210.99,11.84911374]
[1756909361485,11.84911374,211.05,210.99,11.84911374]
[1756909361685,26.0,211.06,211.02,11.84911374]
[1756909362007,38.92,211.07,211.02,11.84911374]
[1756909362198,39.59,211.07,211.02,11.84911374]
[1756909362403,51.43911374,211.07,211.01,11.84911374]
[1756909362906,64.92,211.08,211.04,11.84911374]
[1756909363105,38.92,211.09,211.06,11.84911374]
[1756909363605,0.06,211.07,211.06,0.72]
[1756909363807,0.06,211.07,211.06,12.56911374]
[1756909364113,0.06,211.07,211.04,11.84911374]
[1756909364605,0.06,211.07,211.04,12.56911374]
[1756909364803,0.06,211.07,211.03,11.84911374]
[1756909365007,0.06,211.07,211.02,16.58792372]
[1756909365510,0.06,211.07,211.05,11.84911374]
[1756909365708,0.06,211.07,211.03,11.84911374]
[1756909365909,0.67,211.06,211.03,79.7]
[1756909366090,12.51911374,211.06,211.03,79.7]
[1756909366406,12.51911374,211.05,211.03,79.7]
[1756909366713,26.0,211.03,210.96,0.72]
[1756909366896,11.84911374,211.0,210.96,79.7]
[1756909367216,11.84911374,210.99,210.96,79.7]
[1756909367925,0.06,211.07,210.98,11.84911374]
[1756909368091,0.06,211.07,211.06,11.84911374]
[1756909368411,0.06,211.07,211.06,12.56911374]
[1756909369022,0.06,211.07,211.06,17.30710293]
[1756909369512,0.06,211.07,211.06,5.45798919]
[1756909370014,0.06,211.07,211.06,17.30710293]
[1756909370713,0.06,211.07,211.06,11.84911374]
[1756909371328,0.06,211.07,211.06,12.56911374]
[1756909371698,0.06,211.07,211.0,64.9]
[1756909371699,0.06,211.07,211.03,0.72]
[1756909372104,0.06,211.07,211.05,11.84911374]
[1756909372323,0.06,211.07,211.06,11.84911374]
[1756909372610,0.06,211.07,211.06,12.56911374]
[1756909372916,0.06,211.07,211.06,11.84911374]
[1756909373698,0.06,211.07,211.06,16.58710293]
[1756909374615,0.06,211.07,211.03,0.72]
[1756909374788,0.06,211.07,211.06,11.84911374]
[1756909375191,0.06,211.07,211.06,16.58710293]
[1756909375521,0.06,211.07,211.06,17.30710293]
[1756909375719,0.085535,211.11,211.07,79.64]
[1756909376042,0.085535,211.11,211.09,11.84911374]
[1756909376196,0.085535,211.11,211.07,80.36]
[1756909376509,0.085535,211.11,211.09,11.84911374]
[1756909376705,26.085535,211.11,211.07,79.64]
[1756909376902,26.085535,211.11,211.07,91.48911374]
[1756909377102,0.085535,211.11,211.09,11.84911374]
[1756909377409,0.085535,211.11,211.1,11.84911374]
[1756909378221,0.085535,211.11,211.09,16.58642957]
[1756909378798,0.085535,211.11,211.08,4.73754026]
[1756909379116,0.085535,211.11,211.09,11.84911374]
[1756909380017,0.085535,211.11,211.1,11.84911374]
[1756909380405,0.085535,211.11,211.1,92.20911374]
[1756909380702,0.085535,211.11,211.1,262.38911374]
[1756909381035,0.085535,211.11,211.1,267.12620516]
[1756909381212,0.085535,211.11,211.1,228.24620516]
[1756909381528,0.085535,211.11,211.1,262.38911374]
[1756909381713,0.085535,211.11,211.1,267.12620516]
[1756909383122,0.06,211.13,211.12,16.5857564]
[1756909383300,0.06,211.14,211.12,96.2257564]
[1756909383499,0.06,211.14,211.13,12.56911374]
[1756909384010,0.06,211.15,211.13,224.07748393]
[1756909384226,0.06,211.15,211.14,39.58]
[1756909384410,0.06,211.15,211.14,51.42911374]
[1756909385009,0.06,211.15,211.14,56.16530773]
[1756909385538,0.06,211.15,211.14,52.31811383]
[1756909385744,0.06,211.15,211.14,92.37811383]
[1756909386440,0.06,211.15,211.14,93.09811383]
[1756909386649,0.06,211.15,211.14,88.36191984]
[1756909386816,0.06,211.15,211.14,93.09811383]
[1756909387537,0.06,211.24,211.19,79.38]
[1756909387744,0.06,211.24,211.21,8.00191984]
[1756909387933,26.06,211.24,211.2,8.00191984]
[1756909388320,26.06,211.24,211.19,80.1]
[1756909388525,26.06,211.24,211.2,8.00191984]
[1756909388719,0.06,211.24,211.21,0.72]
[1756909388931,0.06,211.24,211.23,8.00191984]
[1756909389140,0.06,211.24,211.23,12.73609585]
[1756909390656,0.06,211.24,211.22,8.00191984]
[1756909390822,0.06,211.24,211.22,38.84]
[1756909391020,0.06,211.24,211.23,4.73417601]
[1756909391223,0.06,211.24,211.23,12.73609585]
[1756909391440,0.06,211.24,211.23,4.73417601]
[1756909392833,0.74,211.24,211.2,118.22]
[1756909393018,0.74,211.24,211.2,126.22191984]
[1756909393541,0.06,211.24,211.22,8.00191984]
[1756909394429,0.06,211.24,211.21,8.00191984]
[1756909395044,0.74,211.24,211.21,8.00191984]
[1756909395422,0.06,211.24,211.22,12.73631999]
[1756909397050,0.06,211.24,211.21,8.00191984]
[1756909397544,0.68,211.23,211.2,79.38]
[1756909397742,0.68,211.22,211.2,79.38]
[1756909398041,0.06,211.24,211.2,79.38]
[1756909398344,0.06,211.24,211.22,8.00191984]
[1756909398651,0.06,211.24,211.21,8.66191984]
[1756909399033,34.68191984,211.23,211.2,79.38]
[1756909399229,8.68191984,211.23,211.2,79.38]
[1756909399546,0.68,211.23,211.2,79.38]
[1756909401453,8.06191984,211.24,211.2,84.11482716]
[1756909401753,8.06191984,211.24,211.2,80.04]
[1756909401921,8.06191984,211.24,211.2,84.77479301]
[1756909402120,8.06191984,211.24,211.2,84.11479301]
[1756909403134,8.06191984,211.24,211.2,79.38]
[1756909403847,8.74191984,211.24,211.2,79.38]
[1756909404048,8.00191984,211.21,211.2,79.38]
[1756909404245,8.00191984,211.21,211.16,118.23]
[1756909404427,8.00191984,211.21,211.16,118.89]
[1756909404630,8.68191984,211.23,211.17,8.66191984]
[1756909405056,8.00191984,211.21,211.17,79.38]
[1756909405264,8.00191984,211.19,211.17,79.38]
[1756909405551,3.29340278,211.18,211.16,79.41]
[1756909405946,3.29340278,211.19,211.16,79.41]
[1756909406149,3.29340278,211.2,211.16,79.41]
[1756909406458,4.73462892,211.21,211.16,79.41]
[1756909406459,3.29340278,211.19,211.16,79.41]
[1756909407556,8.00583319,211.17,211.16,0.03]
[1756909408133,8.68583319,211.17,211.16,0.03]
[1756909409141,8.00583319,211.17,211.16,0.03]
[1756909410268,8.00583319,211.19,211.16,0.69]
[1756909410436,34.00583319,211.19,211.16,0.69]
[1756909410946,26.0,211.19,211.16,0.03]
[1756909411148,26.0,211.19,211.16,79.41]
[1756909411648,34.00583319,211.19,211.16,79.41]
[1756909411851,34.68583319,211.19,211.16,79.41]
[1756909412045,26.68,211.19,211.16,79.41]
[1756909412246,34.68583319,211.19,211.16,79.41]
[1756909412442,12.74113009,211.18,211.16,79.41]
[1756909412641,34.68583319,211.17,211.16,79.41]
[1756909413143,34.68583319,211.17,211.16,0.03]
[1756909413462,39.42135433,211.17,211.16,0.03]
[1756909413868,73.48583319,211.17,211.16,0.03]
[1756909415043,34.68583319,211.17,211.16,0.03]
[1756909415277,73.48583319,211.17,211.16,0.03]
[1756909415771,8.00583319,211.21,211.16,80.07]
[1756909415946,8.00583319,211.2,211.16,80.07]
[1756909416148,8.00583319,211.17,211.16,79.41]
[1756909416348,34.68583319,211.17,211.16,79.41]
[1756909416963,34.00583319,211.17,211.16,79.41]
[1756909417152,47.6014272,211.18,211.16,79.41]
[1756909417353,86.4014272,211.18,211.16,79.41]
[1756909417553,8.00583319,211.17,211.16,79.41]
[1756909418271,47.6014272,211.18,211.16,79.41]
[1756909418451,86.3814272,211.18,211.16,79.41]
[1756909418651,0.06,211.19,211.17,0.66]
[1756909418853,0.06,211.19,211.16,79.41]
[1756909418854,0.06,211.19,211.18,0.66]
[1756909419548,0.06,211.19,211.18,13.40113009]
[1756909419757,0.06,211.19,211.18,5.3952969]
[1756909420258,0.06,211.19,211.16,79.41]
[1756909420455,0.06,211.19,211.18,0.66]
[1756909421262,0.06,211.19,211.16,79.41]
[1756909421661,0.06,211.19,211.17,0.66]
[1756909421977,0.06,211.19,211.17,8.66583319]
[1756909422163,0.06,211.19,211.18,0.66]
[1756909422552,0.06,211.19,211.16,84.1456194]
[1756909423452,0.06,211.19,211.17,0.66]
[1756909423969,0.06,211.19,211.17,5.39546694]
[1756909424578,0.06,211.19,211.16,79.41]
[1756909424759,8.00583319,211.18,211.16,79.41]
[1756909425300,8.00583319,211.17,211.16,79.41]
[1756909425457,34.00583319,211.17,211.16,79.41]
[1756909427981,34.66583319,211.17,211.16,79.41]
[1756909428885,73.42583319,211.17,211.16,79.41]
[1756909429274,72.76583319,211.17,211.16,79.41]
[1756909429462,64.76,211.17,211.16,79.41]
[1756909429666,68.05473294,211.17,211.16,79.41]
[1756909430180,26.0,211.17,211.16,79.41]
[1756909430369,68.71473294,211.17,211.16,79.41]
[1756909430572,29.29473294,211.17,211.16,79.41]
[1756909430781,68.05473294,211.17,211.16,79.41]
[1756909432280,42.05473294,211.17,211.16,79.41]
[1756909432484,3.29473294,211.17,211.16,79.41]
[1756909432667,42.05473294,211.17,211.16,79.41]
[1756909433071,0.72,211.19,211.16,5.4257454]
[1756909433072,0.06,211.19,211.16,5.4257454]
[1756909433381,0.06,211.19,211.17,0.66]
[1756909433575,3.35473294,211.19,211.17,0.66]
[1756909434185,0.06,211.19,211.18,5.3952969]
[1756909434583,0.06,211.19,211.18,8.69002984]
[1756909435192,0.06,211.19,211.18,5.3952969]
[1756909436068,0.06,211.19,211.18,8.69002984]
[1756909436272,0.06,211.19,211.18,0.66]
[1756909436778,0.06,211.19,211.18,44.1352969]
[1756909436981,0.06,211.19,211.18,5.3952969]
[1756909437287,0.06,211.19,211.18,0.66]
[1756909437498,0.06,211.19,211.18,5.3952969]
[1756909437895,0.06,211.19,211.18,84.7752969]
[1756909439278,0.06,211.19,211.18,88.07002984]
[1756909439674,0.06,211.22,211.21,79.32]
[1756909440087,0.06,211.22,211.21,79.98]
[1756909440306,0.06,211.22,211.21,88.00935724]
[1756909440470,0.06,211.22,211.21,219.30935724]
[1756909440674,1e-08,211.22,211.21,219.30935724]
[1756909440872,1e-08,211.22,211.21,101.60495125]
[1756909442785,1e-08,211.22,211.21,98.31021831]
[1756909443290,1e-08,211.22,211.21,140.32495125]
[1756909443779,1e-08,211.24,211.22,13.59559401]
[1756909443974,1e-08,211.24,211.23,56.17842807]
[1756909444188,0.06,211.29,211.24,13.59559401]
[1756909444393,0.06,211.29,211.28,8.0277886]
[1756909444578,0.06,211.29,211.28,46.7477886]
[1756909444784,0.06,211.29,211.28,43.45305566]
[1756909445178,0.06,211.29,211.28,44.11305566]
[1756909445379,0.06,211.29,211.28,47.4077886]
[1756909445601,0.06,211.29,211.28,10.53049179]
[1756909445799,0.06,211.29,211.28,49.25049179]
[1756909447084,0.2,211.33,211.32,79.06]
[1756909447286,5.33743613,211.33,211.32,79.06]
[1756909447590,23.66496597,211.33,211.28,79.06]
[1756909447787,5.13743613,211.29,211.28,79.06]
[1756909448205,5.13743613,211.3,211.28,79.06]
[1756909448397,5.13743613,211.29,211.28,79.06]
[1756909449481,0.66,211.31,211.28,79.06]
[1756909449677,5.13743613,211.3,211.28,83.79302898]
[1756909449907,5.79743613,211.3,211.28,83.79302898]
[1756909450209,26.86,211.33,211.28,122.49303165]
[1756909450382,31.33743613,211.33,211.29,0.66]
[1756909450784,31.33743613,211.33,211.3,4.73260766]
[1756909450983,5.33743613,211.33,211.3,4.73260766]
[1756909451407,0.2,211.33,211.3,122.49260766]
[1756909451614,0.2,211.33,211.31,0.66]
[1756909451911,0.2,211.33,211.32,39.35]
[1756909452412,6.05743613,211.33,211.3,79.06]
[1756909452586,5.13743613,211.31,211.3,79.06]
[1756909452786,5.85743613,211.31,211.3,79.06]
[1756909453708,12.53936303,211.31,211.3,79.06]
[1756909453906,17.27174673,211.31,211.27,79.06]
[1756909454207,26.06,211.31,211.24,0.67]
[1756909454389,11.81936303,211.28,211.24,0.67]
[1756909454784,11.81936303,211.28,211.23,38.68]
[1756909454785,11.81936303,211.28,211.25,4.73372781]
[1756909454989,0.06,211.31,211.26,12.48936303]
[1756909455185,0.06,211.31,211.27,39.35]
[1756909455382,11.87936303,211.31,211.27,39.35]
[1756909455607,11.81936303,211.3,211.26,211.0]
[1756909455815,11.81936303,211.29,211.27,38.68]
[1756909455992,12.53936303,211.28,211.26,211.0]
[1756909456200,11.81936303,211.28,211.26,211.0]
[1756909457406,11.81936303,211.27,211.26,211.0]
[1756909457601,0.72,211.29,211.26,211.0]
[1756909457809,11.81936303,211.27,211.26,211.0]
[1756909458301,11.81936303,211.27,211.26,79.7]
[1756909458696,26.0,211.3,211.26,79.7]
[1756909458896,11.81936303,211.27,211.26,84.43350373]
[1756909459108,11.81936303,211.28,211.26,84.43345077]
[1756909459690,0.06,211.31,211.26,84.43345077]
[1756909459891,0.06,211.31,211.27,39.33]
[1756909460098,0.06,211.31,211.28,11.81936303]
[1756909460339,0.06,211.31,211.29,50.47936303]
[1756909460496,0.06,211.31,211.29,51.14936303]
[1756909460714,0.06,211.31,211.3,5.40260766]
[1756909461028,0.06,211.31,211.29,38.66]
[1756909461526,0.06,211.31,211.29,39.33]
[1756909462119,0.06,211.31,211.3,12.48936303]
[1756909462896,0.06,211.31,211.3,17.22197069]
[1756909463101,0.06,211.31,211.3,5.40260766]
[1756909463341,0.06,211.31,211.3,17.22197069]
[1756909464117,0.06,211.31,211.3,228.22197069]
[1756909466222,0.06,211.31,211.3,216.40260766]
[1756909466531,0.06,211.31,211.3,228.22197069]
[1756909467610,0.2,211.33,211.32,79.64]
[1756909467806,0.2,211.33,211.32,118.28]
[1756909468330,12.73936303,211.33,211.32,79.64]
[1756909469239,12.01936303,211.33,211.32,79.64]
[1756909469399,0.2,211.33,211.32,79.64]
[1756909472035,12.73936303,211.33,211.32,79.64]
[1756909472845,0.2,211.33,211.32,79.64]
[1756909473005,12.01936303,211.33,211.32,79.64]
[1756909473405,0.06,211.34,211.33,67.62063697]
[1756909473611,5.19817965,211.34,211.33,67.62063697]
[1756909473817,0.06,211.34,211.33,111.6425728]
[1756909474015,0.06,211.34,211.33,116.78075245]
[1756909475439,0.06,211.34,211.33,106.24063697]
[1756909475656,0.06,211.34,211.33,106.91063697]
[1756909476325,0.06,211.34,211.33,106.24063697]
[1756909476535,5.19817965,211.34,211.33,106.24063697]
[1756909476736,0.06,211.34,211.33,106.24063697]
[1756909476920,0.06,211.34,211.33,106.91063697]
[1756909477525,0.06,211.34,211.33,106.24063697]
[1756909477721,0.06,211.34,211.33,67.62063697]
[1756909477942,0.06,211.34,211.33,106.24063697]
[1756909478328,0.06,211.34,211.33,110.9725728]
[1756909478531,0.06,211.34,211.33,106.24063697]
[1756909479221,0.06,211.34,211.33,110.9725728]
[1756909479544,5.19817965,211.36,211.35,67.56063697]
[1756909480828,5.19817965,211.36,211.35,72.29212502]
[1756909481137,10.64944384,211.36,211.31,67.56063697]
[1756909481327,5.13817965,211.32,211.31,67.56063697]
[1756909483746,5.82817965,211.32,211.31,67.56063697]
[1756909484122,10.5603394,211.32,211.31,67.56063697]
[1756909485055,5.82817965,211.32,211.31,67.56063697]
[1756909486749,5.13817965,211.32,211.31,67.56063697]
[1756909490365,5.13817965,211.32,211.31,67.59063697]
[1756909493767,15.69851905,211.32,211.31,67.59063697]
[1756909494867,5.13817965,211.32,211.31,67.59063697]
[1756909495062,43.69817965,211.32,211.31,67.59063697]
[1756909495366,49.1203394,211.32,211.31,67.59063697]
[1756909495563,5.13817965,211.32,211.31,67.59063697]
[1756909496954,5.82817965,211.32,211.31,67.59063697]
[1756909497153,5.13817965,211.32,211.31,67.59063697]
[1756909497357,5.82817965,211.32,211.31,67.59063697]
[1756909497750,10.9663593,211.32,211.31,67.59063697]
[1756909497948,15.69851905,211.32,211.31,67.59063697]
[1756909498448,10.5603394,211.32,211.31,67.59063697]
[1756909498649,29.29411306,211.32,211.31,0.03]
[1756909498852,29.29411306,211.32,211.26,0.03]
[1756909498853,26.0,211.28,211.26,0.03]
[1756909499070,43.67817965,211.27,211.26,0.03]
[1756909499242,44.36817965,211.27,211.26,0.03]
[1756909499574,58.60271739,211.27,211.26,0.03]
[1756909500063,58.60271739,211.27,211.23,0.03]
[1756909500064,39.59559401,211.24,211.23,0.03]
[1756909500266,83.27377366,211.24,211.23,0.03]
[1756909500443,83.96377366,211.24,211.23,0.03]
[1756909500855,45.42377366,211.24,211.23,0.03]
[1756909501044,83.96377366,211.24,211.23,0.03]
[1756909501252,45.42377366,211.24,211.23,0.03]
[1756909501460,83.96377366,211.24,211.23,0.03]
[1756909501770,78.82559401,211.24,211.23,0.03]
[1756909501974,83.96377366,211.24,211.23,0.03]
[1756909502275,88.69772556,211.24,211.23,0.03]
[1756909502442,39.59559401,211.24,211.23,0.03]
[1756909502649,38.54,211.24,211.23,0.74]
[1756909502864,43.67817965,211.24,211.23,0.03]
[1756909503259,57.96377366,211.24,211.23,0.03]
[1756909503666,83.27377366,211.24,211.23,0.03]
[1756909503975,83.96377366,211.24,211.23,0.03]
[1756909504164,88.69772556,211.24,211.23,0.03]
[1756909504475,43.67817965,211.24,211.23,0.03]
[1756909505667,48.41213155,211.24,211.23,0.03]
[1756909505879,43.67817965,211.24,211.23,0.03]
[1756909506557,49.10213155,211.24,211.23,0.03]
[1756909506874,43.67817965,211.24,211.23,0.03]
[1756909507169,38.54,211.24,211.23,0.74]
[1756909507376,43.67817965,211.24,211.23,0.74]
[1756909507576,41.83169808,211.24,211.23,0.74]
[1756909507789,3.29169808,211.24,211.23,0.74]
[1756909508095,67.83169808,211.24,211.23,0.03]
[1756909508259,67.83169808,211.24,211.23,0.74]
[1756909509172,64.54,211.24,211.23,68.30063697]
[1756909509576,64.54,211.24,211.23,67.59063697]
[1756909509777,29.29169808,211.24,211.23,68.30063697]
[1756909509982,67.83169808,211.24,211.23,68.30063697]
[1756909510480,26.0,211.24,211.23,73.03481298]
[1756909510681,41.83169808,211.25,211.23,68.30063697]
[1756909510682,38.54,211.25,211.23,68.30063697]
[1756909510885,38.54,211.25,211.24,0.71]
[1756909511052,0.06,211.26,211.24,0.71]
[1756909511363,0.06,211.26,211.25,3.29169808]
[1756909511775,0.06,211.26,211.25,0.68]
[1756909511956,0.06,211.26,211.25,3.97169808]
[1756909512355,0.06,211.26,211.25,8.70542589]
[1756909513355,0.06,211.26,211.25,47.22542589]
[1756909514266,0.06,211.26,211.25,8.70542589]
[1756909514459,0.06,211.26,211.25,47.22542589]
[1756909514654,0.06,211.29,211.25,59.05974541]
[1756909514863,0.06,211.29,211.28,3.29169808]
[1756909515284,0.06,211.29,211.28,3.97169808]
[1756909515956,1e-08,211.29,211.28,42.49169808]
[1756909516354,1e-08,211.29,211.28,47.22475374]
[1756909516780,1e-08,211.29,211.28,8.70475374]
[1756909516977,1e-08,211.29,211.28,47.20475374]
[1756909517188,1e-08,211.29,211.28,8.70475374]
[1756909517382,1e-08,211.29,211.28,47.20475374]
[1756909517785,1e-08,211.29,211.28,114.76539071]
[1756909518283,1e-08,211.29,211.28,76.26539071]
[1756909518587,1e-08,211.29,211.28,114.76539071]
[1756909518968,1e-08,211.29,211.28,72.97369263]
[1756909519170,1e-08,211.29,211.28,114.76539071]
[1756909519681,1e-08,211.29,211.28,76.26539071]
[1756909519888,1e-08,211.29,211.28,114.76539071]
[1756909520560,1e-08,211.29,211.28,76.26539071]
[1756909520763,1e-08,211.29,211.28,114.76539071]
[1756909522887,1e-08,211.29,211.28,116.66206915]
[1756909523363,1e-08,211.31,211.28,130.25766316]
[1756909523667,1e-08,211.31,211.3,29.29169808]
[1756909523875,1e-08,211.31,211.3,67.77169808]
[1756909524067,0.88,211.41,211.37,67.44063696]
[1756909524277,0.88,211.41,211.37,70.73233504]
[1756909524477,0.68,211.4,211.37,67.44063696]
[1756909526106,0.68,211.4,211.37,72.17167731]
[1756909527503,3.49169808,211.41,211.37,114.60337539]
[1756909527504,0.2,211.41,211.37,114.60337539]
[1756909528700,1e-08,211.38,211.37,60.75833244]
[1756909529000,0.2,211.46,211.41,13.59559401]
[1756909529207,0.06,211.5,211.46,13.59559401]
[1756909529369,1e-08,211.5,211.49,42.88729209]
[1756909529571,1e-08,211.53,211.5,13.59559401]
[1756909529807,1e-08,211.56,211.54,26.0]
[1756909530107,1e-08,211.56,211.55,55.34729209]
[1756909530281,1e-08,211.56,211.55,52.05559401]
[1756909530485,1e-08,211.56,211.55,56.02729209]
[1756909530686,1e-08,211.56,211.55,52.73559401]
[1756909530882,1e-08,211.56,211.55,56.02729209]
[1756909531083,1e-08,211.56,211.55,60.75430698]
[1756909531391,1e-08,211.56,211.55,99.9210993]
[1756909532104,0.2,211.6,211.58,26.0]
[1756909532301,0.2,211.6,211.59,78.71559401]
[1756909532487,0.2,211.6,211.59,82.00729209]
[1756909533388,0.68,211.68,211.59,98.54871654]
[1756909533574,0.68,211.68,211.65,3.29169808]
[1756909533778,0.68,211.67,211.65,3.29169808]
[1756909534101,0.68,211.66,211.64,38.44]